Cogmind - Beta 17.1 @@@ ROGUE MODE // 2026.09.14 @ 01:21:18 Player: VV-JG5 Result: Self-destructed Performance ------------- Evolutions (6) 3000 Regions Visited (24) 4800 Robots Destroyed (340) 1700 Value Destroyed (17157) 17157 Prototype IDs (21) 420 Alien Tech Used (0) 0 Bonus (10295) 10295 TOTAL SCORE: 37372 Bonus ------- High Alert Combat Kills 2627 Follower Combat Kills 2024 Entered Garrisons 1600 Used RIF Installer 3500 Built Enhanced Grunts 300 Met R17 at Cetus 500 Friendly Fire -256 Cogmind --------- Core Integrity 469/1150 Matter 79/300 Energy 149/315 System Corruption 0% Temperature Cool (0) Movement Treading (232) Ox1 Location -4/Garrison Parts ------- > --- POWER (2) -------- Neutrino Core > --- PROPULSION (4) --- Improved Treads Advanced Medium Treads > --- UTILITY (8) ------ Advanced Heat Sink Huge Storage Unit Core Analyzer > --- WEAPON (5) ------- Gauss Rifle Coil Gun > --- INVENTORY (25) --- Transmission Jammer Authchip [R/NC] Relay Coupler [NC] (42) Relay Coupler [Grunt] (42) Long-range Tractor Beam Advanced EMP Blaster Missile Launcher Makeshift Sword Peak State ------------ > --- POWER ------------ Fission Core Quantum Reactor > --- PROPULSION ------- Centrium Heavy Treads Centrium Heavy Treads > --- UTILITY ---------- Improved Cooling System Huge Storage Unit Core Analyzer Weapon Cycler Centrium Medium Armor Plating Centrium Medium Armor Plating Relay Coupler [Grunt] > --- WEAPON ----------- Gauss Rifle Advanced KE Penetrator Advanced KE Penetrator Advanced KE Penetrator > --- INVENTORY -------- Quantum Reactor Improved Heavy Treads Improved Heavy Treads Centrium Heavy Treads Transmission Jammer Centrium Medium Armor Plating Authchip [R/NC] Relay Coupler [NC] Relay Coupler [NC] Relay Coupler [Grunt] Gauss Rifle Gauss Rifle Gauss Rifle Gauss Rifle Advanced EMP Blaster Missile Launcher Remote Datajack Makeshift Sword [Rating: 122] Favorites ----------- Power Quantum Reactor Engine Reinforced Deuterium Engine Power Core Nuclear Core Reactor Quantum Reactor Propulsion Light Treads Treads Light Treads Leg Aluminum Leg Wheel Subdweller Monowheel Utility Huge Storage Unit Device Improved Heat Sink Storage Huge Storage Unit Processor Core Analyzer Hackware Relay Coupler [Grunt] Protection Improved Light Armor Plating Weapon Gauss Rifle Energy Gun Medium Laser Energy Cannon Subdweller Beam Cannon Ballistic Gun Gauss Rifle Launcher Advanced EMP Blaster Special Weapon Advanced Remote Datajack Slashing Weapon Makeshift Axe Build | -11 -10 -10 -8 -8 -8 -8 -8 -7 -7 -7 -7 -6 -6 -6 -6 -6 -5 -5 -5 -5 -4 -4 -4 -4 ------- Run | Yrd Mat Sub Mat Gar Mat Gar Mat Fac Gar Fac Gar Fac Ext Cet Arc Hub Fac Gar Fac Gar Fac Gar Fac Gar Slots Evolved 12 | . . . 4 . . . . 2 . . . 2 . . . . 2 . . . 2 . . . Power 1 | . . . . . . . . . . . . . . . . . 1 . . . . . . . Propulsion 2 | . . . 2 . . . . . . . . . . . . . . . . . . . . . Utility 6 | . . . 2 . . . . . . . . 2 . . . . 1 . . . 1 . . . Weapon 3 | . . . . . . . . 2 . . . . . . . . . . . . 1 . . . Parts Attached 200 | . 7 14 10 7 19 18 9 8 16 9 10 2 8 11 . 3 1 6 1 11 2 12 . 16 Power 18 | . 1 2 1 1 1 1 1 . 1 2 . . . 2 . . 1 . . 1 . 2 . 1 Engine 7 | . 1 2 . 1 . . 1 . 1 1 . . . . . . . . . . . . . . Core 6 | . . . 1 . 1 1 . . . 1 . . . . . . 1 . . . . . . 1 Reactor 5 | . . . . . . . . . . . . . . 2 . . . . . 1 . 2 . . Propulsion 56 | . 3 6 4 2 7 7 3 . 5 3 6 . . 2 . 1 . . 1 2 . . . 4 Treads 49 | . 2 2 2 2 7 7 3 . 5 3 6 . . 2 . 1 . . 1 2 . . . 4 Leg . | . . . . . . . . . . . . . . . . . . . . . . . . . Wheel 7 | . 1 4 2 . . . . . . . . . . . . . . . . . . . . . Hover . | . . . . . . . . . . . . . . . . . . . . . . . . . Flight . | . . . . . . . . . . . . . . . . . . . . . . . . . Utility 60 | . 3 1 2 3 5 5 4 4 3 4 1 2 5 3 . . . 2 . 3 2 3 . 5 Device 20 | . 1 1 . 2 . 2 1 4 . 3 . . 1 . . . . 1 . 1 . 1 . 2 Storage 3 | . 1 . . . 1 . . . . . . . . . . . . . . . 1 . . . Processor 3 | . . . 1 . . . . . 1 . . . . 1 . . . . . . . . . . Hackware 7 | . . . . . . . . . . . . 1 1 . . . . 1 . . 1 1 . 2 Protection 27 | . 1 . 1 1 4 3 3 . 2 1 1 1 3 2 . . . . . 2 . 1 . 1 Artifact . | . . . . . . . . . . . . . . . . . . . . . . . . . Weapon 66 | . . 5 3 1 6 5 1 4 7 . 3 . 3 4 . 2 . 4 . 5 . 7 . 6 Energy Gun . | . . . . . . . . . . . . . . . . . . . . . . . . . Energy Cannon 3 | . . 1 1 1 . . . . . . . . . . . . . . . . . . . . Ballistic Gun 56 | . . 2 2 . 3 5 1 4 7 . 3 . 3 4 . 1 . 4 . 4 . 7 . 6 Ballistic Cannon . | . . . . . . . . . . . . . . . . . . . . . . . . . Launcher 3 | . . . . . 3 . . . . . . . . . . . . . . . . . . . Special Weapon 2 | . . . . . . . . . . . . . . . . 1 . . . 1 . . . . Impact Weapon . | . . . . . . . . . . . . . . . . . . . . . . . . . Slashing Weapon 2 | . . 2 . . . . . . . . . . . . . . . . . . . . . . Piercing Weapon . | . . . . . . . . . . . . . . . . . . . . . . . . . Special Melee Weapon . | . . . . . . . . . . . . . . . . . . . . . . . . . Unidentified Prototypes 5 | . . . 1 . 1 . . . . . . . . 3 . . . . . . . . . . Corrupted Parts 1 | . . . . . . . . . . . . . . . . 1 . . . . . . . . System Corruption 5 | . . . . . . . . . . . . . . . . 5 . . . . . . . . Parts Lost 101 | . . 9 1 . 7 19 1 3 6 5 5 . 1 . . 1 . 3 1 2 . 11 . 26 Power 9 | . . 2 . . . 2 . . . 1 . . . . . . . . . . . 1 . 3 Propulsion 34 | . . 4 1 . 5 8 . . 4 2 3 . . . . . . . 1 1 . 1 . 4 Utility 27 | . . 1 . . 1 5 1 2 . 2 . . 1 . . . . 2 . . . 4 . 8 Weapon 31 | . . 2 . . 1 4 . 1 2 . 2 . . . . 1 . 1 . 1 . 5 . 11 Highest Loss Streak 24 | . . 2 1 . 2 4 1 1 3 5 1 . 1 . . 1 . 2 1 1 . 5 . 24 To Critical Strikes 2 | . . . . . . . . . . . . . . . . . . . . 1 . . . 1 Average Backups 22 | 6 10 23 23 24 24 22 24 24 24 23 24 20 22 22 22 21 18 20 22 23 22 21 23 19 Power 1 | 1 1 1 1 2 2 . 1 1 2 2 1 1 1 1 1 1 1 1 1 2 2 2 2 1 Propulsion 4 | 4 4 5 4 6 6 5 6 7 4 2 1 5 6 5 5 4 3 3 2 2 2 3 4 3 Utility 6 | . 2 5 4 4 8 5 6 7 7 9 9 5 5 7 7 7 6 7 9 9 9 8 9 7 Weapon 8 | 1 . 10 12 10 6 8 9 7 8 9 10 8 8 8 8 7 7 8 8 8 8 6 8 7 Tool/Special . | . . . . . . . . . . . . . . . . . . . . . . . . . Unused Backups 53 | 6 1 3 5 3 3 . 6 . 6 . 5 . 3 4 . 1 . . 1 3 . . . 3 Power 4 | 1 . . . . . . . . . . . . 1 2 . . . . . . . . . . Propulsion 8 | 2 . . . . . . . . . . . . 2 2 . 1 . . . 1 . . . . Utility 15 | 1 . . 1 . 2 . 1 . . . 4 . . . . . . . 1 2 . . . 3 Weapon 25 | 2 1 3 4 3 1 . 4 . 6 . 1 . . . . . . . . . . . . . Tool/Special 1 | . . . . . . . 1 . . . . . . . . . . . . . . . . . Average Slot Usage (%) 94 | . 94 98 97 100 96 99 99 94 99 97 97 85 85 86 86 86 87 87 88 87 87 81 84 81 Engine 5 | . 14 13 . 7 1 . 8 7 7 6 7 6 6 1 . . . . . . . . . . Core 2 | . . . 8 1 7 8 . . . . . . . . . . 4 5 5 3 . . . . Reactor 1 | . . . . . . . . . . . . . . 5 6 6 5 5 5 6 10 9 10 8 Treads 21 | . 8 14 26 32 35 35 35 30 30 30 27 13 13 13 13 13 11 11 11 11 10 9 10 9 Wheel 3 | . 6 13 9 3 . . . . . . . . . . . . . . . . . . . . Device 12 | . 1 12 9 9 9 8 9 14 10 11 15 25 20 13 13 13 16 16 17 17 15 10 10 9 Storage 8 | . 14 14 9 9 9 9 9 7 7 7 7 6 6 6 6 6 5 5 5 5 5 5 5 5 Processor 2 | . . . 6 9 2 . . . 6 2 . . . 6 6 6 5 5 5 5 5 5 5 5 Hackware 1 | . . . . . . . . . . . . . 3 6 6 6 5 5 5 5 8 9 10 9 Protection 7 | . 7 . 8 9 13 17 17 3 4 6 7 6 8 6 6 6 5 4 5 5 5 5 5 6 Energy Cannon 3 | . . 12 9 9 1 . . . . . . . . . . . . . . . . . . . Ballistic Gun 19 | . 14 11 8 9 16 15 18 29 29 30 29 26 25 26 26 25 22 23 23 22 22 24 25 24 Peak Build Rating 122 | 6 8 17 31 33 38 37 33 40 43 44 67 72 78 114 114 114 122 121 118 114 116 116 112 118 Average Rating 50 | 6 7 13 26 31 35 29 30 35 41 39 46 71 74 99 114 113 117 117 115 107 115 109 111 102 On Entrance 66 | 6 6 8 17 30 33 37 27 29 38 43 39 67 72 77 114 114 109 119 118 114 107 116 112 110 Avg Prop Armor Cover (%) 14 | . 10 13 22 21 . . 22 . . . . . . . . . . . . . . . . . Naked Turns . | . . . . . . . . . . . . . . . . . . . . . . . . . Heaviest Build 233 | 11 91 98 104 110 113 113 102 104 110 116 116 118 125 134 134 134 149 144 141 149 233 153 139 153 Greatest Support 160 | 20 40 40 20 80 85 83 84 84 84 80 150 150 150 160 160 160 160 160 160 155 155 155 155 155 Greatest Overweight (x) 33 | . 9 9 10 8 1 1 33 1 1 1 1 . . . . . . . . . 1 . . . Average Overweight (x) 2 | . 4 5 7 3 1 1 2 1 1 1 . . . . . . . . . . . . . . Largest Inventory Capacity 25 | 8 25 25 25 25 25 25 25 25 25 25 25 25 25 25 25 25 25 25 25 25 25 25 25 25 Average Capacity 24 | 8 15 25 25 25 25 25 25 25 25 25 25 25 25 25 25 25 25 25 25 25 25 25 25 25 Most Carried 25 | 7 16 25 25 25 25 25 25 25 25 25 25 24 25 25 25 25 23 25 25 25 25 25 25 25 Average Carried 23 | 6 10 23 23 24 24 22 24 24 24 23 24 22 24 24 25 24 21 23 24 24 24 23 25 21 Final Capacity 25 | 8 25 25 25 25 25 25 25 25 25 25 25 25 25 25 25 25 25 25 25 25 25 25 25 25 Final Carried 25 | 7 16 24 25 25 25 24 25 24 25 24 25 24 25 25 25 22 23 25 25 25 25 25 25 8 Class Distribution -------------------- 27% | Scavenger-Mutant 24% | Mutant 17% | Bothacker-Tank 13% | Scavenger-Tank 8% | Botlord-Tank 7% | Scavenger-Gunner Dominant Class ---------------- Mutant | -10/Materials Mutant | -10/Subcaves Mutant | -8/Materials Scavenger-Mutant | -8/Garrison Scavenger-Mutant | -8/Materials Scavenger-Mutant | -8/Garrison Scavenger-Mutant | -8/Materials Scavenger-Gunner | -7/Factory Scavenger-Gunner | -7/Garrison Bothacker-Tank | -7/Factory Bothacker-Tank | -7/Garrison Bothacker-Tank | -6/Factory Bothacker-Tank | -6/Extension Scavenger-Tank | -6/Cetus Scavenger-Tank | -6/Archives Scavenger-Tank | -6/Hub_04(d) Scavenger-Tank | -5/Factory Bothacker-Tank | -5/Garrison Botlord-Tank | -5/Factory Botlord-Tank | -5/Garrison Botlord-Tank | -4/Factory Scavenger-Tank | -4/Garrison Scavenger-Tank | -4/Factory Scavenger-Tank | -4/Garrison Resources | -11 -10 -10 -8 -8 -8 -8 -8 -7 -7 -7 -7 -6 -6 -6 -6 -6 -5 -5 -5 -5 -4 -4 -4 -4 ----------- Run | Yrd Mat Sub Mat Gar Mat Gar Mat Fac Gar Fac Gar Fac Ext Cet Arc Hub Fac Gar Fac Gar Fac Gar Fac Gar Matter Collected 11629 | 215 44 547 146 191 734 1111 535 504 609 466 1113 229 984 334 48 214 18 857 149 909 . 960 . 712 Remotely 569 | . . . . . . . . . . . . . . . . . . . . 168 . 226 . 175 Salvage Created 16909 | 75 106 807 433 527 1158 1268 750 616 753 500 2098 254 1370 402 264 617 . 971 204 1501 . 818 77 1340 Parts 877 | 6 10 52 18 22 74 63 42 24 46 20 103 9 70 23 14 32 . 50 8 74 . 43 7 67 Haulers Intercepted 7 | . . . 1 . 5 . . . . . . . . . . 1 . . . . . . . . Recyclers Shooed 1 | . . . . . . . . . . . . . 1 . . . . . . . . . . . Parts Field Recycled . | . . . . . . . . . . . . . . . . . . . . . . . . . Retrieved Matter . | . . . . . . . . . . . . . . . . . . . . . . . . . Parts Self-Destructed 21 | . . 21 . . . . . . . . . . . . . . . . . . . . . . Prevented . | . . . . . . . . . . . . . . . . . . . . . . . . . Parts Restored . | . . . . . . . . . . . . . . . . . . . . . . . . . Kills | -11 -10 -10 -8 -8 -8 -8 -8 -7 -7 -7 -7 -6 -6 -6 -6 -6 -5 -5 -5 -5 -4 -4 -4 -4 ------- Run | Yrd Mat Sub Mat Gar Mat Gar Mat Fac Gar Fac Gar Fac Ext Cet Arc Hub Fac Gar Fac Gar Fac Gar Fac Gar Combat Hostiles Destroyed 311 | . 4 21 7 10 21 35 15 13 18 8 31 4 21 5 3 7 . 20 3 24 . 15 3 23 Melee 1 | . . . . . . . . . . . . . . . . . . . . . . 1 . . Guns 263 | . 4 6 3 2 17 27 15 13 15 8 31 4 21 5 3 7 . 20 3 23 . 14 3 19 Cannons 22 | . . 12 3 7 . . . . . . . . . . . . . . . . . . . . AOE 18 | . . . . . 3 8 . . 3 . . . . . . . . . . 1 . . . 3 Classes Destroyed 22 | 1 3 3 4 2 4 1 2 . . . . . 1 . . 1 . . . . . . . . Worker 3 | . . . . . . . 1 . . 1 . . 1 . . . . . . . . . . . Builder 1 | . . . . . . . 1 . . . . . . . . . . . . . . . . . Tunneler 5 | 4 . . . . . . 1 . . . . . . . . . . . . . . . . . Hauler 7 | . . . 1 . 5 . . . . . . . . . . 1 . . . . . . . . Recycler 3 | . . . . . 1 . 1 . . . . . . . . 1 . . . . . . . . Mechanic 1 | . . . 1 . . . . . . . . . . . . . . . . . . . . . Operator 5 | . 1 . 1 . 2 . . . . . . . 1 . . . . . . . . . . . Watcher 3 | . . . . . 1 . 1 . . . . . . 1 . . . . . . . . . . Swarmer 84 | . 3 7 . . 5 12 4 3 7 . 10 . . . . . . 8 . 11 . 4 3 7 Cutter 3 | . . . . . 3 . . . . . . . . . . . . . . . . . . . Saboteur 1 | . . . . . . . . . . . . . . . . 1 . . . . . . . . Grunt 95 | . 1 . 4 7 7 9 5 10 2 4 10 3 10 . . 3 . 4 2 3 . 4 . 7 Brawler 8 | . . . . 1 . 2 1 . . 1 . 1 1 . . 1 . . . . . . . . Duelist 7 | . . . . 1 1 2 . . 1 1 1 . . . . . . . . . . . . . Sentry 40 | . . . 2 1 4 6 2 . 4 2 1 . 5 . 3 1 . 3 1 3 . 1 . 1 Specialist 5 | . . . . . 1 . 2 . . . . . . . . . . . . 2 . . . . Hunter 21 | . . . 1 . . 1 1 . 1 . 3 . 2 . . . . 3 . 1 . 4 . 4 Programmer 21 | . . . . . . 3 . . 3 . 6 . 1 . . . . 1 . 3 . 1 . 3 Behemoth 7 | . . . . . . . . . . . . . 2 . . 1 . 1 . 1 . 1 . 1 Cetus Guard 5 | . . . . . . . . . . . . . . 5 . . . . . . . . . . Artisan 2 | . . 2 . . . . . . . . . . . . . . . . . . . . . . Subdweller 14 | . . 14 . . . . . . . . . . . . . . . . . . . . . . Zionite 1 | . . 1 . . . . . . . . . . . . . . . . . . . . . . Best Kill Streak 13 | 3 2 3 2 3 4 12 5 6 5 4 7 4 6 4 3 4 . 4 2 6 . 6 3 13 Combat Bots Only 13 | . 2 3 2 3 3 12 5 6 5 3 7 4 6 3 3 3 . 4 2 6 . 6 3 13 Max Kills in Single Turn 4 | 1 1 1 1 1 2 4 1 2 3 1 2 1 1 2 1 3 . 2 1 2 . 2 1 2 Gunslinging 1 | . . . . . . . . 1 1 . 1 . . 1 . . . . . 1 . 1 . 1 Exploded 4 | . . . . . 2 4 . . 3 . . . . . . . . . . 1 . . . 2 Melee 1 | . . . . . . . . . . . . . . . . . . . . . . 1 . . Uniques/NPCs Destroyed . | . . . . . . . . . . . . . . . . . . . . . . . . . Combat | -11 -10 -10 -8 -8 -8 -8 -8 -7 -7 -7 -7 -6 -6 -6 -6 -6 -5 -5 -5 -5 -4 -4 -4 -4 -------- Run | Yrd Mat Sub Mat Gar Mat Gar Mat Fac Gar Fac Gar Fac Ext Cet Arc Hub Fac Gar Fac Gar Fac Gar Fac Gar Hostile Shots Fired 2217 | . 34 121 52 28 160 259 80 45 163 58 134 8 102 19 2 59 4 99 10 140 . 299 4 337 Missed 657 | . 10 37 14 12 37 84 26 13 57 13 31 3 32 5 1 25 3 31 3 36 . 96 1 87 Hits 1560 | . 24 84 38 16 123 175 54 32 106 45 103 5 70 14 1 34 1 68 7 104 . 203 3 250 Melee 28 | . . . . 1 6 1 6 . . 13 1 . . . . . . . . . . . . . Projectile 1532 | . 24 84 38 15 117 174 48 32 106 32 102 5 70 14 1 34 1 68 7 104 . 203 3 250 AOE 4 | . . . 1 . 3 . . . . . . . . . . . . . . . . . . . Critical Strikes 50 | . 1 1 3 1 4 9 . . 1 5 . 1 1 2 1 . . 1 . 6 . 5 . 8 Part Disruptions 1 | . . . . . . 1 . . . . . . . . . . . . . . . . . . Damage Taken 23196 | . 198 1093 599 253 1994 2375 715 508 1090 832 1031 94 1027 292 27 636 19 1388 146 1433 . 3383 46 4017 Core 1880 | . 17 167 29 14 180 108 94 36 143 83 74 . 44 . . 43 . 81 . 86 . 334 . 347 Absorbed by Shields 1876 | . . . . 18 . 75 . . . . 442 . 233 94 . . . 167 . 457 . 148 . 242 Reduced by Siege Mode 555 | . . . . . . . . . . . . 20 86 23 . . . 20 . 78 . 79 . 249 Ignored by Resistances 130 | . . . . . . 94 36 . . . . . . . . . . . . . . . . . Core Remaining (%) 62 | 100 . 26 . . . . 22 . . . 52 . . . . 89 . . . 83 . . . . Volleys Fired 791 | 15 26 41 31 26 79 94 57 24 30 14 63 9 57 14 5 15 3 45 6 42 6 42 3 44 Largest 5 | 2 2 2 2 2 2 2 2 4 4 4 4 4 4 4 4 4 4 4 4 4 1 5 5 5 Hottest 159 | 70 70 110 110 108 110 64 51 97 104 112 112 112 112 126 140 140 133 138 131 131 10 159 156 159 Shots Fired 2336 | 30 52 80 51 46 151 184 119 92 111 55 242 36 219 56 20 48 12 168 24 154 6 181 15 184 Gun 2199 | 30 52 46 25 21 131 176 119 92 110 55 242 36 216 56 20 44 12 167 24 152 . 181 15 177 Cannon 98 | . . 34 26 25 13 . . . . . . . . . . . . . . . . . . . Launcher 26 | . . . . . 7 8 . . 1 . . . 3 . . . . . . . . . . 7 Special 13 | . . . . . . . . . . . . . . . . 4 . 1 . 2 6 . . . Kinetic 2151 | 15 26 39 25 21 131 176 119 92 110 55 242 36 216 56 20 44 12 167 24 152 . 181 15 177 Thermal 146 | 15 26 41 26 25 13 . . . . . . . . . . . . . . . . . . . Explosive 16 | . . . . . 7 8 . . 1 . . . . . . . . . . . . . . . Electromagnetic 10 | . . . . . . . . . . . . . 3 . . . . . . . . . . 7 Robot Hit Streak 37 | 5 7 17 8 9 32 24 16 10 23 18 21 9 31 22 34 37 6 13 8 32 5 18 3 20 Robot Miss Streak 6 | 2 3 2 2 3 3 2 5 2 5 2 5 4 3 2 . 4 1 6 1 3 1 6 2 4 Penetration Max 1 | . . . . . . 1 1 1 1 1 1 1 1 1 . 1 . . . 1 . 1 . 1 Secondary Targets 67 | . . 1 . . 3 7 1 7 8 3 7 . 3 3 . 1 . 3 . 6 . 5 1 8 Max Gunslinging Chain 2 | . . 1 . . 1 1 1 1 1 1 1 . 1 2 . 1 . 1 . 1 . 1 1 2 Shots Hit Robots 1613 | 17 28 53 31 27 116 142 82 70 73 44 170 23 155 51 17 32 8 99 15 105 5 119 6 125 Core Hits 714 | 6 8 24 13 14 41 66 32 28 37 20 84 12 64 26 8 19 2 41 9 49 . 48 3 60 Critical Kills 30 | . . 3 2 1 4 . . 1 3 1 1 1 . 2 . 3 . 5 . 1 . . . 2 Critical Parts Destroyed 41 | . . . . . 2 1 . . 6 . 3 . 4 . 2 4 1 10 . 5 . 1 . 2 Critical Strikes 78 | 1 . 4 2 1 6 1 . 1 9 1 4 1 4 3 3 7 1 16 . 8 . 1 . 4 Burn 1 | 1 . . . . . . . . . . . . . . . . . . . . . . . . Meltdown 6 | . . 3 1 1 1 . . . . . . . . . . . . . . . . . . . Destroy 70 | . . 1 1 . 5 1 . 1 9 1 4 1 4 3 3 7 1 16 . 7 . 1 . 4 Sever 1 | . . . . . . . . . . . . . . . . . . . . 1 . . . . Melee Attacks 58 | . . 19 . . . 7 . . . . 21 . . . . . . . . 9 . . 2 . Impact . | . . . . . . . . . . . . . . . . . . . . . . . . . Slashing 58 | . . 19 . . . 7 . . . . 21 . . . . . . . . 9 . . 2 . Piercing . | . . . . . . . . . . . . . . . . . . . . . . . . . Sneak Attacks 3 | . . 3 . . . . . . . . . . . . . . . . . . . . . . Combat Hostiles . | . . . . . . . . . . . . . . . . . . . . . . . . . Follow-up Attacks . | . . . . . . . . . . . . . . . . . . . . . . . . . Damage Inflicted 37790 | 181 294 1313 847 723 2493 3666 1543 1171 1818 930 4387 621 3385 1305 431 1257 199 2377 350 2819 . 2624 110 2946 Guns 32160 | 180 294 381 293 283 2066 2693 1466 1161 1556 922 3531 609 3383 1305 431 1248 199 2377 350 2179 . 2545 110 2598 Cannons 1968 | . . 760 554 440 214 . . . . . . . . . . . . . . . . . . . Explosions 1787 | . . . . . 204 973 . . 262 . . . . . . . . . . . . . . 348 Melee 1668 | . . 172 . . . . . . . . 856 . . . . . . . . 640 . . . . Ramming 207 | 1 . . . . 9 . 77 10 . 8 . 12 2 . . 9 . . . . . 79 . . Kinetic 31812 | 81 94 332 293 283 2066 2693 1466 1161 1556 922 3531 609 3383 1305 431 1248 199 2377 350 2179 . 2545 110 2598 Thermal 2316 | 99 200 809 554 440 214 . . . . . . . . . . . . . . . . . . . Explosive 1439 | . . . . . 204 973 . . 262 . . . . . . . . . . . . . . . Electromagnetic 348 | . . . . . . . . . . . . . . . . . . . . . . . . 348 Impact . | . . . . . . . . . . . . . . . . . . . . . . . . . Slashing 1668 | . . 172 . . . . . . . . 856 . . . . . . . . 640 . . . . Piercing . | . . . . . . . . . . . . . . . . . . . . . . . . . Highest Corruption 18 | . . . . 1 1 7 7 . 3 14 18 . . . . 5 . 2 2 6 . . . . Average Corruption 6 | . . . . 1 1 6 7 . 1 9 17 . . . . 5 . 1 2 5 . . . . Corruption Purged . | . . . . . . . . . . . . . . . . . . . . . . . . . Corruption Blocked . | . . . . . . . . . . . . . . . . . . . . . . . . . Effects 281 | . . . . 2 21 48 55 . 19 19 78 . . . . 2 . 4 3 30 . . . . Message Errors 65 | . . . . . 5 14 15 . 3 3 16 . . . . 1 . . 1 7 . . . . Matter Fused 65 | . . . . 1 3 10 15 . 4 7 9 . . . . 1 . . 2 13 . . . . Heat Flow Errors 33 | . . . . . 4 6 2 . 1 3 13 . . . . . . . . 4 . . . . Energy Discharges 21 | . . . . . 2 6 9 . . . 3 . . . . . . . . 1 . . . . Parts Rejected 1 | . . . . . . . 1 . . . . . . . . . . . . . . . . . Parts Fused 7 | . . . . . . . 1 . 2 1 2 . . . . . . 1 . . . . . . Data Loss (minor) 34 | . . . . . 2 4 4 . 4 1 14 . . . . . . 2 . 3 . . . . Data Loss (major) 17 | . . . . . 2 3 2 . 2 . 6 . . . . . . 1 . 1 . . . . Misfires 21 | . . . . . 3 3 5 . 1 1 7 . . . . . . . . 1 . . . . Alerts 4 | . . . . 1 . . 1 . 1 1 . . . . . . . . . . . . . . Weapon Failures 13 | . . . . . . 2 . . 1 2 8 . . . . . . . . . . . . . Overload Shots . | . . . . . . . . . . . . . . . . . . . . . . . . . Overflow Damage 94 | . . 68 . . . 2 9 . 3 . 1 . . . . . . . . . . . . 11 Projectiles . | . . . . . . . . . . . . . . . . . . . . . . . . . Explosions 16 | . . . . . . 2 . . 3 . . . . . . . . . . . . . . 11 Melee 78 | . . 68 . . . . 9 . . . 1 . . . . . . . . . . . . . Knockbacks . | . . . . . . . . . . . . . . . . . . . . . . . . . Impact . | . . . . . . . . . . . . . . . . . . . . . . . . . Kinetic . | . . . . . . . . . . . . . . . . . . . . . . . . . Secondary . | . . . . . . . . . . . . . . . . . . . . . . . . . Self-Inflicted Damage 243 | . . . . . 184 . . . . . . . 16 . . . . . . 43 . . . . Shots 7 | . . . . . 5 . . . . . . . 1 . . . . . . 1 . . . . Rammed 22 | . . . . . 1 . 6 1 . 1 . 1 1 . . 2 . . . . . 9 . . Targets Rammed 24 | 1 . . . . 1 . 6 1 . 1 . 1 1 . . 2 . . . . . 10 . . Kicked 1 | 1 . . . . . . . . . . . . . . . . . . . . . . . . Crushed 1 | . . . . . . . . . . . . . . . . . . . . . . 1 . . Highest Temperature 345 | 170 260 26 201 124 237 254 261 10 168 231 240 77 94 22 36 48 38 318 109 252 . 345 . 13 Average Temperature 60 | 73 100 19 50 46 55 73 133 4 62 60 57 40 25 12 27 28 28 58 54 68 . 116 . 7 Received Heat Transfer 4366 | . 18 144 183 96 477 792 162 225 132 198 177 63 172 . . 165 9 438 36 208 . 228 . 443 Effects 8 | . . . . . . . . . . . 2 . . . . . . 1 . . . 5 . . Interference 8 | . . . . . . . . . . . 2 . . . . . . 1 . . . 5 . . Siege Activations 21 | . . . . . . . . . . . . 1 7 2 . . . 3 1 3 . 3 . 1 Total Turns 297 | . . . . . . . . . . . . 19 75 30 . . . 19 7 44 . 44 . 59 Longest Duration 59 | . . . . . . . . . . . . 19 27 21 . . . 10 7 16 . 20 . 59 Martial Activations . | . . . . . . . . . . . . . . . . . . . . . . . . . Shielding Activations . | . . . . . . . . . . . . . . . . . . . . . . . . . Robots Disrupted . | . . . . . . . . . . . . . . . . . . . . . . . . . Combat Hostiles . | . . . . . . . . . . . . . . . . . . . . . . . . . Robots Corrupted 2 | . . . . . . . 1 . . . . . . . . . . . . . . . . 1 Combat Hostiles 1 | . . . . . . . . . . . . . . . . . . . . . . . . 1 Parts Fried 11 | . . . . . . . 2 . . . . . 2 3 . . . . . . . . . 4 Impact Corruptions 1 | . . . . . . . 1 . . . . . . . . . . . . . . . . . Robots Melted 6 | . . 3 1 1 1 . . . . . . . . . . . . . . . . . . . Combat Hostiles 6 | . . 3 1 1 1 . . . . . . . . . . . . . . . . . . . Parts Melted 15 | . 2 5 2 1 3 . . . . . . . 1 . . . . . . 1 . . . . Heat Transferred 3700 | 370 592 1184 703 555 296 . . . . . . . . . . . . . . . . . . . Parts Sabotaged . | . . . . . . . . . . . . . . . . . . . . . . . . . Parts Stolen . | . . . . . . . . . . . . . . . . . . . . . . . . . Parts Stripped . | . . . . . . . . . . . . . . . . . . . . . . . . . Power Chain Reactions 2 | . . . . . . . . . . . . . 1 . . . . . . . . . . 1 Alert | -11 -10 -10 -8 -8 -8 -8 -8 -7 -7 -7 -7 -6 -6 -6 -6 -6 -5 -5 -5 -5 -4 -4 -4 -4 ------- Run | Yrd Mat Sub Mat Gar Mat Gar Mat Fac Gar Fac Gar Fac Ext Cet Arc Hub Fac Gar Fac Gar Fac Gar Fac Gar Maximum Alert Level 4 | . . . . 2 1 4 2 1 3 2 4 2 3 2 1 4 3 4 3 4 2 1 1 1 Low Security (%) 24 | 100 100 . 100 39 45 . 14 73 9 . . . 62 . 7 12 . . . . . 3 39 99 Level 1 23 | . . . . 15 54 8 61 26 18 . 3 . 25 1 92 8 . . . . 66 96 60 . Level 2 23 | . . . . 45 . 13 23 . 55 100 22 100 8 98 . 8 18 6 16 29 33 . . . Level 3 22 | . . . . . . 60 . . 16 . 59 . 3 . . 44 81 36 83 69 . . . . Level 4 6 | . . . . . . 18 . . . . 14 . . . . 26 . 57 . . . . . . Level 5 . | . . . . . . . . . . . . . . . . . . . . . . . . . High Security . | . . . . . . . . . . . . . . . . . . . . . . . . . Max Security . | . . . . . . . . . . . . . . . . . . . . . . . . . Peak Influence 1425 | 10 60 . 96 585 329 1222 595 238 874 526 1180 619 967 569 339 1375 866 1425 773 1143 599 323 273 202 Initial 747 | . . . . 29 284 212 595 99 120 458 315 619 255 540 198 111 673 595 747 473 599 202 169 158 Average 491 | 1 16 . 27 311 210 844 302 138 506 466 824 542 220 491 300 837 778 1075 731 847 421 262 218 170 Influence Increases 12201 | 20 120 180 255 576 739 1200 439 349 854 288 915 149 1348 321 181 1394 419 960 79 690 . 251 138 336 Destroy 0b10 Robot/C 6384 | . 80 140 140 220 420 700 300 260 520 160 620 80 660 160 80 460 80 470 45 297 . 180 36 276 Destroy 0b10 Robot/NC 239 | 20 5 . 15 . 45 . 25 . . 5 30 15 30 10 . 15 15 . . 9 . . . . Destroy Leader 906 | . 20 10 42 10 132 70 82 40 40 30 50 14 92 . . 112 26 30 16 30 . 30 6 24 Allied During Kill 1533 | . . . . 7 . . 3 . 70 . . 25 381 140 80 587 114 124 . . . . . 2 Successful Hack 197 | . . . 22 14 16 14 11 48 14 5 . 11 14 . . 12 . 16 . . . . . . Disable Machine 426 | . . . 30 . 15 . 15 . . 60 15 . 75 . 15 30 90 15 . 12 . . 54 . Anti-Garrison Action 1443 | . . . . 300 . 300 . . 150 . 150 . . . . 150 . 213 . 180 . . . . Destroy Structure 566 | . . . 6 10 51 56 3 1 15 28 20 4 21 11 6 28 94 32 18 81 . 5 42 34 Lose Combat Pursuer 507 | . 15 30 . 15 60 60 . . 45 . 30 . 75 . . . . 60 . 81 . 36 . . Influence Decreases 12027 | 20 120 180 210 36 997 305 1442 396 152 712 185 807 903 793 357 338 944 385 828 223 854 217 234 389 Entered New Map 6234 | . . . . 16 301 115 627 120 52 416 135 561 267 427 297 208 702 255 678 203 544 87 154 69 Time Decay 3959 | 20 120 146 200 . 626 . 595 246 . 246 . 246 546 246 40 80 222 . 140 . 160 . 80 . Lost Part 954 | . . 34 10 . 70 190 10 30 60 50 50 . 10 . . 10 . 30 10 20 . 110 . 260 Lost Ally 580 | . . . . 20 . . 60 . 40 . . . 80 120 20 40 20 100 . . . 20 . 60 Purge Threat 300 | . . . . . . . 150 . . . . . . . . . . . . . 150 . . . Squads Dispatched 26 | . 1 . 4 . 3 . 5 1 . . . . 7 . . 3 2 . . . . . . . Investigation 4 | . . . . . . . 1 . . . . . 3 . . . . . . . . . . . Extermination 1 | . . . . . . . . . . . . . . . . . 1 . . . . . . . Reinforcement 17 | . 1 . 2 . 3 . 4 1 . . . . 4 . . 1 1 . . . . . . . Assault 2 | . . . . . . . . . . . . . . . . 2 . . . . . . . . Garrison 2 | . . . 2 . . . . . . . . . . . . . . . . . . . . . Intercept . | . . . . . . . . . . . . . . . . . . . . . . . . . Searches Triggered . | . . . . . . . . . . . . . . . . . . . . . . . . . Construction Impeded 2 | . . . . . . . . . . . . . 2 . . . . . . . . . . . Haulers Reinforced . | . . . . . . . . . . . . . . . . . . . . . . . . . Active Scanning Responses . | . . . . . . . . . . . . . . . . . . . . . . . . . Cargo Convoy Interrupts . | . . . . . . . . . . . . . . . . . . . . . . . . . Stealth | -11 -10 -10 -8 -8 -8 -8 -8 -7 -7 -7 -7 -6 -6 -6 -6 -6 -5 -5 -5 -5 -4 -4 -4 -4 --------- Run | Yrd Mat Sub Mat Gar Mat Gar Mat Fac Gar Fac Gar Fac Ext Cet Arc Hub Fac Gar Fac Gar Fac Gar Fac Gar Distress Signals 22 | . 2 . 2 . 5 . 4 . . . . . 4 2 . 3 . . . . . . . . Communications Jammed 11 | . . . . . . . . . . . . 1 1 . . . 9 . . . . . . . Distress Signals 11 | . . . . . . . . . . . . 1 1 . . . 9 . . . . . . . Times Spotted 464 | . 12 25 19 13 43 38 26 14 29 10 35 6 39 10 3 20 8 28 3 36 1 15 4 27 Peak Tracking Total 9 | . 5 5 4 4 6 6 5 6 6 3 6 2 7 5 2 8 2 6 1 6 1 7 2 9 Tactical Retreats 29 | . 1 2 . 1 4 2 . . 3 . 2 . 3 . . . . 2 . 8 . 1 . . Traps | -11 -10 -10 -8 -8 -8 -8 -8 -7 -7 -7 -7 -6 -6 -6 -6 -6 -5 -5 -5 -5 -4 -4 -4 -4 ------- Run | Yrd Mat Sub Mat Gar Mat Gar Mat Fac Gar Fac Gar Fac Ext Cet Arc Hub Fac Gar Fac Gar Fac Gar Fac Gar Traps Triggered 39 | . . 2 . 3 . 9 1 . 9 1 7 . 1 . . . 2 2 . . . 1 . 1 Indirectly . | . . . . . . . . . . . . . . . . . . . . . . . . . Trap Hack Attempts . | . . . . . . . . . . . . . . . . . . . . . . . . . Triggered . | . . . . . . . . . . . . . . . . . . . . . . . . . Disarmed . | . . . . . . . . . . . . . . . . . . . . . . . . . Reprogrammed . | . . . . . . . . . . . . . . . . . . . . . . . . . Reused . | . . . . . . . . . . . . . . . . . . . . . . . . . Traps Extracted . | . . . . . . . . . . . . . . . . . . . . . . . . . Installed . | . . . . . . . . . . . . . . . . . . . . . . . . . Triggered . | . . . . . . . . . . . . . . . . . . . . . . . . . Machines | -11 -10 -10 -8 -8 -8 -8 -8 -7 -7 -7 -7 -6 -6 -6 -6 -6 -5 -5 -5 -5 -4 -4 -4 -4 ---------- Run | Yrd Mat Sub Mat Gar Mat Gar Mat Fac Gar Fac Gar Fac Ext Cet Arc Hub Fac Gar Fac Gar Fac Gar Fac Gar Machines Disabled 49 | . . . 2 . 1 3 1 . 1 4 2 . 9 . 1 3 6 4 . 6 . . 6 . Max in Single Turn 6 | . . . 1 . 1 1 1 . 1 3 1 . 2 . 1 1 5 1 . 2 . . 6 . Garrison Access 1 | . . . . . . . . . . . . . . . . 1 . . . . . . . . Garrison Relay 10 | . . . . . . 2 . . 1 . 1 . . . . . . 3 . 3 . . . . Phase Generator 1 | . . . . . . . . . . . . . . . . . . . . 1 . . . . Machines Repaired . | . . . . . . . . . . . . . . . . . . . . . . . . . Machines Dismantled . | . . . . . . . . . . . . . . . . . . . . . . . . . Machines Sabotaged . | . . . . . . . . . . . . . . . . . . . . . . . . . Overloaded Fab Kills . | . . . . . . . . . . . . . . . . . . . . . . . . . Hacking | -11 -10 -10 -8 -8 -8 -8 -8 -7 -7 -7 -7 -6 -6 -6 -6 -6 -5 -5 -5 -5 -4 -4 -4 -4 --------- Run | Yrd Mat Sub Mat Gar Mat Gar Mat Fac Gar Fac Gar Fac Ext Cet Arc Hub Fac Gar Fac Gar Fac Gar Fac Gar Machines Accessed 66 | . 3 4 4 2 8 2 4 5 3 2 2 3 10 1 . 1 4 2 1 1 1 2 1 . Terminals 46 | . 1 . 2 2 6 2 3 3 3 1 2 3 10 1 . 1 1 2 . 1 . 2 . . Fabricators . | . . . . . . . . . . . . . . . . . . . . . . . . . Repair Stations . | . . . . . . . . . . . . . . . . . . . . . . . . . Recycling Units 5 | . 2 . . . 1 . 1 . . . . . . . . . 1 . . . . . . . Scanalyzers 3 | . . . 1 . . . . 1 . . . . . . . . 1 . . . . . . . Garrison Access 8 | . . . 1 . 1 . . 1 . 1 . . . . . . 1 . 1 . 1 . 1 . Total Hacks 122 | . 4 8 10 4 19 3 9 9 6 2 3 8 15 3 . 2 6 3 1 2 1 3 1 . Successful 54 | . 2 8 7 1 8 1 4 5 2 2 . 2 3 . . 1 3 1 1 . 1 1 1 . Failed 68 | . 2 . 3 3 11 2 5 4 4 . 3 6 12 3 . 1 3 2 . 2 . 2 . . Catastrophic 19 | . . . . 1 1 1 1 1 2 . 2 . 7 2 . 1 . . . . . . . . Database Lockouts . | . . . . . . . . . . . . . . . . . . . . . . . . . Manual 22 | . 1 . 7 . 4 . 2 3 1 . . . 3 1 . . . . . . . . . . Terminals 92 | . 1 . 7 4 16 3 8 6 6 1 3 8 15 3 . 2 1 3 . 2 . 3 . . Fabricators . | . . . . . . . . . . . . . . . . . . . . . . . . . Repair Stations . | . . . . . . . . . . . . . . . . . . . . . . . . . Recycling Units 8 | . 3 . . . 2 . 1 . . . . . . . . . 2 . . . . . . . Scanalyzers 5 | . . . 1 . . . . 2 . . . . . . . . 2 . . . . . . . Garrison Access 9 | . . . 2 . 1 . . 1 . 1 . . . . . . 1 . 1 . 1 . 1 . Terminal Hacks 35 | . . 8 3 1 6 1 4 1 2 1 . 2 3 . . 1 . 1 . . . 1 . . Record 7 | . . 5 . . . . . 1 . . . . . . . 1 . . . . . . . . Robot Analysis 4 | . . . 1 . 2 . 1 . . . . . . . . . . . . . . . . . Prototype ID Bank 1 | . . . . . . . . . . . . 1 . . . . . . . . . . . . Open Door 4 | . . 1 . . . . . . . . . . 3 . . . . . . . . . . . Open DSF 1 | . . . . . . . . . . 1 . . . . . . . . . . . . . . Branch Access Points 2 | . . . 1 . . . . . . . . 1 . . . . . . . . . . . . Emergency Access Points 1 | . . . . . . . . . 1 . . . . . . . . . . . . . . . Unreport Threat 1 | . . . . . . . 1 . . . . . . . . . . . . . . . . . Locate Traps 1 | . . . . . 1 . . . . . . . . . . . . . . . . . . . Hauler Manifests 3 | . . . 1 . 1 . 1 . . . . . . . . . . . . . . . . . Zone Layout 3 | . . . . . 2 . 1 . . . . . . . . . . . . . . . . . Garrison Registry 4 | . . . . 1 . 1 . . 1 . . . . . . . . . . . . 1 . . Security Stations 1 | . . . . . . . . . . . . . . . . . . 1 . . . . . . Proto ID Catalog 1 | . . 1 . . . . . . . . . . . . . . . . . . . . . . Release Object 1 | . . 1 . . . . . . . . . . . . . . . . . . . . . . Fabricator Hacks . | . . . . . . . . . . . . . . . . . . . . . . . . . Repair Station Hacks . | . . . . . . . . . . . . . . . . . . . . . . . . . Recycling Unit Hacks 4 | . 2 . . . 1 . . . . . . . . . . . 1 . . . . . . . Retrieve Components 4 | . 2 . . . 1 . . . . . . . . . . . 1 . . . . . . . Scanalyzer 3 | . . . 1 . . . . 1 . . . . . . . . 1 . . . . . . . Retrieve Study 3 | . . . 1 . . . . 1 . . . . . . . . 1 . . . . . . . Garrison Access Hacks 8 | . . . 1 . 1 . . 1 . 1 . . . . . . 1 . 1 . 1 . 1 . Unlock Access 8 | . . . 1 . 1 . . 1 . 1 . . . . . . 1 . 1 . 1 . 1 . Unauthorized Hacks 4 | . . . 2 . . . . 2 . . . . . . . . . . . . . . . . Terminals 4 | . . . 2 . . . . 2 . . . . . . . . . . . . . . . . Track 2 | . . . . . . . . 2 . . . . . . . . . . . . . . . . Botnet 2 | . . . 2 . . . . . . . . . . . . . . . . . . . . . Fabricators . | . . . . . . . . . . . . . . . . . . . . . . . . . Repair Stations . | . . . . . . . . . . . . . . . . . . . . . . . . . Recycling Units . | . . . . . . . . . . . . . . . . . . . . . . . . . Scanalyzers . | . . . . . . . . . . . . . . . . . . . . . . . . . Garrison Access . | . . . . . . . . . . . . . . . . . . . . . . . . . Data Cores Recovered 1 | . . . . . 1 . . . . . . . . . . . . . . . . . . . Used . | . . . . . . . . . . . . . . . . . . . . . . . . . Hacking Detections 52 | . 2 . 3 2 6 2 4 5 3 1 2 2 8 1 . 1 3 2 . 1 1 2 1 . Full Trace Events 4 | . . . . 2 . . . . . . . . 2 . . . . . . . . . . . Feedback Events 1 | . . . . 1 . . . . . . . . . . . . . . . . . . . . Corruption 1 | . . . . 1 . . . . . . . . . . . . . . . . . . . . Feedback Blocked . | . . . . . . . . . . . . . . . . . . . . . . . . . Robot Schematics Acquired . | . . . . . . . . . . . . . . . . . . . . . . . . . Robots Built . | . . . . . . . . . . . . . . . . . . . . . . . . . Authchips . | . . . . . . . . . . . . . . . . . . . . . . . . . Time . | . . . . . . . . . . . . . . . . . . . . . . . . . Total Robot Build Rating . | . . . . . . . . . . . . . . . . . . . . . . . . . Part Schematics Acquired . | . . . . . . . . . . . . . . . . . . . . . . . . . Parts Built . | . . . . . . . . . . . . . . . . . . . . . . . . . Authchips . | . . . . . . . . . . . . . . . . . . . . . . . . . Time . | . . . . . . . . . . . . . . . . . . . . . . . . . Total Part Build Rating . | . . . . . . . . . . . . . . . . . . . . . . . . . Part Studies Acquired 3 | . . . 1 . . . . 1 . . . . . . . . 1 . . . . . . . Parts Repaired . | . . . . . . . . . . . . . . . . . . . . . . . . . Time . | . . . . . . . . . . . . . . . . . . . . . . . . . Parts Recycled . | . . . . . . . . . . . . . . . . . . . . . . . . . Recycled Matter . | . . . . . . . . . . . . . . . . . . . . . . . . . Retrieved Matter . | . . . . . . . . . . . . . . . . . . . . . . . . . Retrieved Components 11 | . 5 . . . 3 . . . . . . . . . . . 3 . . . . . . . Parts Scanalyzed . | . . . . . . . . . . . . . . . . . . . . . . . . . Part Schematics Acquired . | . . . . . . . . . . . . . . . . . . . . . . . . . Parts Damaged . | . . . . . . . . . . . . . . . . . . . . . . . . . Bothacking | -11 -10 -10 -8 -8 -8 -8 -8 -7 -7 -7 -7 -6 -6 -6 -6 -6 -5 -5 -5 -5 -4 -4 -4 -4 ------------ Run | Yrd Mat Sub Mat Gar Mat Gar Mat Fac Gar Fac Gar Fac Ext Cet Arc Hub Fac Gar Fac Gar Fac Gar Fac Gar Used RIF Installer 7 | . . . . 1 . 1 . . 1 . 1 . . . . . . 1 . 1 . 1 . . Command Fork 1 | . . . . . . . . . 1 . . . . . . . . . . . . . . . Threat Obfuscator 2 | . . . . . . . . . . . . . . . . . . 1 . 1 . . . . Zone Cloak 1 | . . . . . . . . . . . . . . . . . . . . . . 1 . . Structural Interface 1 | . . . . . . 1 . . . . . . . . . . . . . . . . . . Autooverride 1 | . . . . . . . . . . . 1 . . . . . . . . . . . . . Robots Hacked 19 | . . . . . . . . . . . . . 4 . . 3 1 3 . 2 2 1 . 3 Non-combat 2 | . . . . . . . . . . . . . . . . . . . . . 2 . . . Combat 17 | . . . . . . . . . . . . . 4 . . 3 1 3 . 2 . 1 . 3 Autooverrided 12 | . . . . . . . . . . . . . 4 . . 1 1 2 . . . 1 . 3 Robot Hacks Applied 8 | . . . . . . . . . . . . . . . . 2 . 1 . 2 3 . . . purge_threat 1 | . . . . . . . . . . . . . . . . . . . . . 1 . . . block_reporting 1 | . . . . . . . . . . . . . . . . . . . . . 1 . . . map_route 1 | . . . . . . . . . . . . . . . . . . . . . 1 . . . amplify_resonance 4 | . . . . . . . . . . . . . . . . 1 . 1 . 2 . . . . formatsys_high 1 | . . . . . . . . . . . . . . . . 1 . . . . . . . . Relay Couplers Released 53 | . . . . 3 . 7 . . 8 . 4 . . . . 2 . 19 . 10 . . . . Machine Destruction 42 | . . . . . . 7 . . 4 . 4 . . . . 2 . 15 . 10 . . . . Programmers 11 | . . . . 3 . . . . 4 . . . . . . . . 4 . . . . . . Attached 6 | . . . . . . . . . . . . . 1 . . . . 1 . . 1 1 . 2 Fabnet Peak Effective % . | . . . . . . . . . . . . . . . . . . . . . . . . . Robots Rewired 9 | . . . . 1 . 3 . . . . . . 5 . . . . . . . . . . . Allies Hacked . | . . . . . . . . . . . . . . . . . . . . . . . . . Hacks Repelled . | . . . . . . . . . . . . . . . . . . . . . . . . . Allies | -11 -10 -10 -8 -8 -8 -8 -8 -7 -7 -7 -7 -6 -6 -6 -6 -6 -5 -5 -5 -5 -4 -4 -4 -4 -------- Run | Yrd Mat Sub Mat Gar Mat Gar Mat Fac Gar Fac Gar Fac Ext Cet Arc Hub Fac Gar Fac Gar Fac Gar Fac Gar Total Allies 39 | . . . . 1 . 3 . . 2 . 2 . 16 5 . 3 1 2 . . . 1 . 3 Largest Group 11 | . . . . 1 . 2 3 . 2 . 2 2 11 10 9 7 7 4 . . . 1 . 1 Highest-Rated Group 740 | . . . . 10 . 10 15 . 142 . 175 175 447 740 706 531 435 298 . . . 47 . 58 Highest-Rated Ally 159 | . . . . 10 . 5 5 . 80 . 95 95 159 159 153 96 96 96 . . . 47 . 58 Total Orders . | . . . . . . . . . . . . . . . . . . . . . . . . . Ally Attacks 374 | . . . . 1 . . 17 . 20 . . 7 95 39 9 102 41 34 . . . 2 . 7 Total Damage 10389 | . . . . 29 . . 96 . 792 . . 261 2509 946 203 3761 687 884 . . . 17 . 204 Kills 63 | . . . . 1 . . . . 8 . . 3 16 4 1 18 7 5 . . . . . . Allies Corrupted 1 | . . . . . . . . . . . . . 1 . . . . . . . . . . . Allies Melted . | . . . . . . . . . . . . . . . . . . . . . . . . . Intel | -11 -10 -10 -8 -8 -8 -8 -8 -7 -7 -7 -7 -6 -6 -6 -6 -6 -5 -5 -5 -5 -4 -4 -4 -4 ------- Run | Yrd Mat Sub Mat Gar Mat Gar Mat Fac Gar Fac Gar Fac Ext Cet Arc Hub Fac Gar Fac Gar Fac Gar Fac Gar Active Infowar (turns) 9584 | . 45 1554 409 886 506 . . 101 5 297 40 527 1016 . . . 430 1216 289 1209 330 289 160 275 Seismic 3211 | . 45 1554 . . . . . 101 5 272 40 527 667 . . . . . . . . . . . Machine Analysis 1801 | . . . 409 886 506 . . . . . . . . . . . . . . . . . . . Jamming 5765 | . . . . . . . . . . 25 . 526 1016 . . . 430 1216 289 1209 330 289 160 275 Robot Analysis Total 4 | . . . 1 . 2 . 1 . . . . . . . . . . . . . . . . . Derelict Logs Recovered 2 | . . 2 . . . . . . . . . . . . . . . . . . . . . . Drone Launches . | . . . . . . . . . . . . . . . . . . . . . . . . . Drone Recoveries . | . . . . . . . . . . . . . . . . . . . . . . . . . Exploration | -11 -10 -10 -8 -8 -8 -8 -8 -7 -7 -7 -7 -6 -6 -6 -6 -6 -5 -5 -5 -5 -4 -4 -4 -4 ------------- Run | Yrd Mat Sub Mat Gar Mat Gar Mat Fac Gar Fac Gar Fac Ext Cet Arc Hub Fac Gar Fac Gar Fac Gar Fac Gar Turns Passed 24793 | 112 453 5000 528 886 2152 1841 1891 527 1436 526 1670 527 1565 531 96 169 473 1216 289 1211 330 771 160 433 Spaces Moved 11426 | 29 178 2800 182 383 860 706 567 201 622 222 690 302 791 274 47 69 282 650 154 634 195 346 89 153 Core 18 | . . . . . . . 18 . . . . . . . . . . . . . . . . . Treads 8100 | . 19 1 . 244 860 706 549 201 622 222 690 302 791 274 47 69 282 650 154 634 195 346 89 153 Legs 98 | 29 69 . . . . . . . . . . . . . . . . . . . . . . . Wheels 3210 | . 90 2799 182 139 . . . . . . . . . . . . . . . . . . . . Hover . | . . . . . . . . . . . . . . . . . . . . . . . . . Flight . | . . . . . . . . . . . . . . . . . . . . . . . . . Fastest Speed 120 | 120 120 150 150 200 200 200 200 212 200 200 160 160 160 160 160 160 160 160 160 160 160 160 160 160 Average Speed 182 | 120 172 168 207 203 212 201 250 212 206 200 201 160 160 160 160 160 160 160 160 160 161 160 160 160 Slowest Speed 1700 | 120 215 320 230 210 222 222 1700 212 212 200 210 160 160 160 160 160 160 160 160 160 240 160 160 160 Overloaded Moves . | . . . . . . . . . . . . . . . . . . . . . . . . . Propulsion Burnouts . | . . . . . . . . . . . . . . . . . . . . . . . . . Robots Hopped . | . . . . . . . . . . . . . . . . . . . . . . . . . Potential Cave-ins . | . . . . . . . . . . . . . . . . . . . . . . . . . Cave-ins Triggered . | . . . . . . . . . . . . . . . . . . . . . . . . . Exploration Rate (%) 44 | 3 21 96 27 63 80 55 53 10 75 8 93 9 84 75 70 16 12 86 6 91 8 39 4 27 Regions Visited 24 Branch Regions 5 Pre-discovered Areas 2 | . . 2 . . . . . . . . . . . . . . . . . . . . . . Known Exits Taken 9 | . . . 1 . 1 . . 1 . 1 . 1 . . . . 1 . 1 . 1 . 1 . Unknown Exits Taken 8 | 1 1 1 . . . . 1 . . . . . 1 1 1 1 . . . . . . . . Scrap Searched 11 | . . 11 . . . . . . . . . . . . . . . . . . . . . . Spaces Dug 16 | . . . 2 . . 2 . . . . 8 . . . . 2 . . . . . . 2 . Terrain Destroyed 338 | . . 4 5 . 56 25 1 . 6 29 15 . 11 . 5 8 56 4 10 58 . 7 25 13 Melee 12 | . . . . . . 2 . . . . 8 . . . . . . . . . . . 2 . Projectile 73 | . . 4 5 . 8 . 1 . 2 3 5 . 5 . 5 8 1 4 10 1 . 6 . 5 AOE 241 | . . . . . 48 23 . . 4 26 . . 5 . . . 55 . . 54 . . 23 3 Terrain Rammed . | . . . . . . . . . . . . . . . . . . . . . . . . . Walls Destroyed . | . . . . . . . . . . . . . . . . . . . . . . . . . Machines Disabled . | . . . . . . . . . . . . . . . . . . . . . . . . . Actions | -11 -10 -10 -8 -8 -8 -8 -8 -7 -7 -7 -7 -6 -6 -6 -6 -6 -5 -5 -5 -5 -4 -4 -4 -4 --------- Run | Yrd Mat Sub Mat Gar Mat Gar Mat Fac Gar Fac Gar Fac Ext Cet Arc Hub Fac Gar Fac Gar Fac Gar Fac Gar Total 13816 | 79 279 2977 284 447 1031 926 939 247 729 264 836 327 983 345 58 103 295 742 185 745 210 456 95 234 Wait 756 | 34 52 41 34 . 41 10 276 10 3 6 14 8 73 23 7 9 2 27 20 31 . 28 . 7 Move 11408 | 28 177 2799 181 382 860 705 566 201 621 222 689 301 790 273 46 68 282 649 154 633 195 344 89 153 Hop . | . . . . . . . . . . . . . . . . . . . . . . . . . Pick Up 159 | 1 11 23 12 6 11 17 8 3 17 2 10 2 5 6 . . 2 6 3 4 2 6 . 2 Fast Attach 61 | . 3 . 2 1 6 3 2 2 5 3 4 . 1 7 . . 4 4 . 4 1 7 . 2 Attach 110 | . 1 12 7 1 10 16 . 4 7 4 5 3 . . . 2 1 2 1 2 3 10 . 19 Detach 26 | . 1 2 4 . 4 . . . . 1 3 1 . 1 . 1 . . . . 1 4 . 3 Swap 140 | . 3 34 3 6 8 11 8 2 8 10 4 2 10 4 . 4 1 4 . 11 1 2 1 3 Drop 142 | . 5 6 10 11 11 2 16 . 20 1 11 . 10 17 . 2 . 5 1 9 1 3 . 1 Fire 791 | 15 26 41 31 26 79 94 57 24 30 14 63 9 57 14 5 15 3 45 6 42 6 42 3 44 Melee 58 | . . 19 . . . 7 . . . . 21 . . . . . . . . 9 . . 2 . Ram . | . . . . . . . . . . . . . . . . . . . . . . . . . Kick 1 | 1 . . . . . . . . . . . . . . . . . . . . . . . . Crush 23 | . . . . . 1 . 6 1 . 1 . 1 1 . . 2 . . . . . 10 . . Escape Stasis 49 | . . . . 7 . 14 . . 16 . 12 . . . . . . . . . . . . . Rewire 92 | . . . . 7 . 47 . . 2 . . . 36 . . . . . . . . . . . Trap . | . . . . . . . . . . . . . . . . . . . . . . . . . Miscellaneous . | . . . . . . . . . . . . . . . . . . . . . . . . . Route ------- -11/Scrapyard -10/Materials -10/Subcaves (discovered 3 exits: *Mat x2 / Rec) -8/Materials (discovered 2 exits: Sto / Gar) -8/Garrison (discovered 3 exits: *Mat x3) -8/Materials (discovered 4 exits: *Fac x2 / *Sto / Gar) -8/Garrison (discovered 4 exits: *Fac x3 / *Mat) -8/Materials -7/Factory -7/Garrison (discovered 3 exits: *Fac x3) -7/Factory (discovered 3 exits: *Fac / [*Low] / Gar) -7/Garrison (discovered 3 exits: *Fac x3) -6/Factory (discovered 4 exits: *Low x2 / *Ext x2) -6/Extension (discovered 2 exits: *Fac / *Cet) -6/Cetus (discovered 3 exits: *Fac x2 / *Arc) -6/Archives -6/Hub_04(d) -5/Factory (discovered 2 exits: [*Upp] / Gar) -5/Garrison (discovered 3 exits: *Fac x3) -5/Factory (discovered 3 exits: *Fac / [*Upp] / Gar) -5/Garrison (discovered 3 exits: *Fac x3) -4/Factory (discovered 2 exits: [*Upp] / Gar) -4/Garrison (discovered 3 exits: *Fac x3) -4/Factory -4/Garrison History --------- Turn | Location | Event 13 | -11/Scrapyard | Discovered new exit (range 3) 113 | -11/Scrapyard | Entered Materials 351 | -10/Materials | Build established: Mutant 485 | -10/Materials | Discovered new exit (range 8) 566 | -10/Materials | Entered Subcaves 948 | -10/Subcaves | Shifting Twisted Machinery released Lgt. Humpback 949 | -10/Subcaves | Shifting Twisted Machinery released Sub. Beam Cannon 1340 | -10/Subcaves | Learned location of Zion (-6) 1340 | -10/Subcaves | Met a Zionite searching for "candidates" 1504 | -10/Subcaves | Learned Materials terminal intel 1824 | -10/Subcaves | A swath of the cavern ceiling suddenly collapsed 2215 | -10/Subcaves | Discovered new exit (range 13) 3029 | -10/Subcaves | Core integrity fell below 50% 3877 | -10/Subcaves | Discovered new exit (range 14) 4822 | -10/Subcaves | Shifting Twisted Machinery released Battle Rifle 4832 | -10/Subcaves | Shifting Twisted Machinery released Flamer 5029 | -10/Subcaves | Visited Clippyterm 5034 | -10/Subcaves | Identified exit to Recycling 5034 | -10/Subcaves | Learned Factory trap positions 5404 | -10/Subcaves | Visited 4L-MR0's lab 5566 | -10/Subcaves | Entered Materials 5566 | -8/Materials | Evolved 4 slots: Propulsion x2, Utility x2 5567 | -8/Materials | Loaded intel: 12 terminal locations 5703 | -8/Materials | Identified exit to Storage 5899 | -8/Materials | Garrison activated, responded to threat 6088 | -8/Materials | Identified exit to Garrison 6094 | -8/Materials | Entered Garrison 6230 | -8/Garrison | Warlord forces raided the area 6334 | -8/Garrison | Triggered checkpoint 6372 | -8/Garrison | Triggered checkpoint 6402 | -8/Garrison | Triggered checkpoint 6452 | -8/Garrison | Triggered checkpoint 6470 | -8/Garrison | Build established: Scavenger-Mutant 6512 | -8/Garrison | Triggered checkpoint 6528 | -8/Garrison | Triggered checkpoint 6579 | -8/Garrison | Discovered new exit (range 77) 6579 | -8/Garrison | Discovered new exit (range 46) 6579 | -8/Garrison | Discovered new exit (range 15) 6600 | -8/Garrison | Triggered checkpoint 6653 | -8/Garrison | Installed Relay Interface Framework 6730 | -8/Garrison | Triggered checkpoint 6802 | -8/Garrison | Triggered checkpoint 6980 | -8/Garrison | Entered Materials 6980 | -8/Materials | Discovered exit to Storage (range 14) 7535 | -8/Materials | Discovered new exit (range 16) 8182 | -8/Materials | Discovered new exit (range 16) 9132 | -8/Materials | Identified exit to Garrison 9132 | -8/Materials | Entered Garrison 9143 | -8/Garrison | Triggered checkpoint 9185 | -8/Garrison | Triggered checkpoint 9260 | -8/Garrison | Lost 4 parts (1p1n1u1w) 9284 | -8/Garrison | Triggered checkpoint 9497 | -8/Garrison | Lost 3 parts (2n1u) 9525 | -8/Garrison | Triggered checkpoint 9545 | -8/Garrison | Core integrity fell below 50% 9568 | -8/Garrison | Destroyed 12 combat bots 9610 | -8/Garrison | Triggered checkpoint 9697 | -8/Garrison | Discovered new exit (range 14) 9700 | -8/Garrison | Triggered checkpoint 9778 | -8/Garrison | Discovered new exit (range 6) 9872 | -8/Garrison | Triggered checkpoint 9936 | -8/Garrison | Lost 3 parts (2n1u) 10107 | -8/Garrison | Garrison Relay disabled 10301 | -8/Garrison | Expanded RIF knowledge: Structural Interface 10550 | -8/Garrison | Discovered new exit (range 31) 10550 | -8/Garrison | Discovered new exit (range 59) 10550 | -8/Garrison | Discovered new exit (range 23) 10550 | -8/Garrison | Discovered new exit (range 24) 10556 | -8/Garrison | Triggered checkpoint 10630 | -8/Garrison | Garrison Relay disabled 10973 | -8/Garrison | Entered Materials 10973 | -8/Materials | Accompanied by 3 allies 11925 | -8/Materials | Discovered new exit (range 8) 12864 | -8/Materials | Entered Factory 12864 | -7/Factory | Evolved 2 slots: Weapon x2 12865 | -7/Factory | Loaded intel: 111 trap records 13391 | -7/Factory | Identified exit to Garrison 13391 | -7/Factory | Entered Garrison 13399 | -7/Garrison | Triggered checkpoint 13417 | -7/Garrison | Build established: Scavenger-Gunner 13448 | -7/Garrison | Found embedded Infiltrators 13525 | -7/Garrison | Triggered checkpoint 13531 | -7/Garrison | Triggered checkpoint 13717 | -7/Garrison | Triggered checkpoint 13720 | -7/Garrison | Discovered new exit (range 14) 13973 | -7/Garrison | Triggered checkpoint 14023 | -7/Garrison | Garrison Relay disabled 14195 | -7/Garrison | Expanded RIF knowledge: Command Fork 14212 | -7/Garrison | Discovered new exit (range 13) 14293 | -7/Garrison | Triggered checkpoint 14353 | -7/Garrison | Lost 3 parts (3n) 14416 | -7/Garrison | Discovered new exit (range 7) 14416 | -7/Garrison | Discovered new exit (range 57) 14416 | -7/Garrison | Discovered new exit (range 78) 14597 | -7/Garrison | Triggered checkpoint 14827 | -7/Garrison | Entered Factory 14861 | -7/Factory | Discovered new exit (range 9) 14939 | -7/Factory | Discovered new exit (range 6) 14945 | -7/Factory | Identified exit to DSF 15020 | -7/Factory | System corruption reached 10% 15053 | -7/Factory | Lost 5 parts (1p2n2u) 15353 | -7/Factory | Identified exit to Garrison 15353 | -7/Factory | Entered Garrison 15385 | -7/Garrison | Expanded RIF knowledge: Autooverride 15541 | -7/Garrison | Build established: Bothacker-Tank 15639 | -7/Garrison | Triggered checkpoint 15641 | -7/Garrison | Triggered checkpoint 15730 | -7/Garrison | Destroyed 7 combat bots 15753 | -7/Garrison | Triggered checkpoint 15780 | -7/Garrison | Garrison Relay disabled 15937 | -7/Garrison | Triggered checkpoint 15974 | -7/Garrison | Discovered new exit (range 10) 16336 | -7/Garrison | Triggered checkpoint 16355 | -7/Garrison | Discovered new exit (range 13) 16702 | -7/Garrison | Discovered new exit (range 5) 16741 | -7/Garrison | Triggered checkpoint 16984 | -7/Garrison | Found embedded Infiltrators 17023 | -7/Garrison | Entered Factory 17023 | -6/Factory | Accompanied by 2 allies 17023 | -6/Factory | Evolved 2 slots: Utility x2 17259 | -6/Factory | Identified exit to Lower Caves 17259 | -6/Factory | Identified exit to Extension 17550 | -6/Factory | Entered Extension 17550 | -6/Extension | Accompanied by 2 allies 17994 | -6/Extension | Rescued a captive Derelict 17995 | -6/Extension | Rescued a captive Derelict 18165 | -6/Extension | Spotted B-75 Beast 18174 | -6/Extension | Destroyed B-75 Beast 18200 | -6/Extension | Spotted B-75 Beast 18220 | -6/Extension | Destroyed B-75 Beast 18464 | -6/Extension | Rescued A7 18584 | -6/Extension | Rescued a captive Derelict 18585 | -6/Extension | Rescued a captive Derelict 18630 | -6/Extension | Rescued a captive Derelict 18631 | -6/Extension | Rescued a captive Derelict 18824 | -6/Extension | Build established: Scavenger-Tank 19013 | -6/Extension | Disrupted transfer network 19079 | -6/Extension | Discovered new exit (range 10) 19081 | -6/Extension | Discovered new exit (range 6) 19115 | -6/Extension | Entered Cetus 19115 | -6/Cetus | Accompanied by 10 allies (A7) 19120 | -6/Cetus | Acquired a Cetus Manufacturing Module code from A7 19136 | -6/Cetus | Spotted Cetus Guard 19136 | -6/Cetus | Spotted Cetus Guard 19143 | -6/Cetus | Spotted Cetus Guard 19147 | -6/Cetus | Spotted Cetus Guard 19147 | -6/Cetus | Destroyed Cetus Guard 19147 | -6/Cetus | Destroyed Cetus Guard 19159 | -6/Cetus | Destroyed Cetus Guard 19163 | -6/Cetus | Allies destroyed Cetus Guard 19192 | -6/Cetus | Lost 5 allies 19264 | -6/Cetus | Discovered new exit (range 15) 19367 | -6/Cetus | Started Cetus Manufacturing Module 19392 | -6/Cetus | Manufactured an Enhanced Grunt 19417 | -6/Cetus | Manufactured an Enhanced Grunt 19442 | -6/Cetus | Manufactured an Enhanced Grunt 19467 | -6/Cetus | Manufactured an Enhanced Grunt 19470 | -6/Cetus | Discovered new exit (range 16) 19492 | -6/Cetus | Manufactured an Enhanced Grunt 19501 | -6/Cetus | Spotted Cetus Guard 19501 | -6/Cetus | Spotted Cetus Guard 19504 | -6/Cetus | Spotted Cetus Guard 19505 | -6/Cetus | Destroyed Cetus Guard 19507 | -6/Cetus | Spotted Cetus Guard 19507 | -6/Cetus | Allies destroyed Cetus Guard 19513 | -6/Cetus | Allies destroyed Cetus Guard 19514 | -6/Cetus | Destroyed Cetus Guard 19533 | -6/Cetus | Discovered new exit (range 16) 19541 | -6/Cetus | Met Revision 17 19646 | -6/Cetus | Entered Archives 19646 | -6/Archives | Accompanied by 9 allies (A7) 19706 | -6/Archives | Unable to access archive contents 19713 | -6/Archives | Discovered new exit (range 14) 19742 | -6/Archives | Entered Hub_04(d) 19742 | -6/Hub_04(d) | Accompanied by 7 allies 19747 | -6/Hub_04(d) | Spotted B-75 Beast 19759 | -6/Hub_04(d) | Destroyed B-75 Beast 19848 | -6/Hub_04(d) | Discovered new exit (range 10) 19911 | -6/Hub_04(d) | Entered Factory 19911 | -5/Factory | Accompanied by 6 allies 19911 | -5/Factory | Evolved 2 slots: Power x1, Utility x1 20209 | -5/Factory | Discovered new exit (range 6) 20382 | -5/Factory | Identified exit to Garrison 20384 | -5/Factory | Entered Garrison 20384 | -5/Garrison | Accompanied by 4 allies 20478 | -5/Garrison | Spotted B-75 Beast 20498 | -5/Garrison | Triggered checkpoint 20503 | -5/Garrison | Allies destroyed B-75 Beast 20511 | -5/Garrison | Triggered checkpoint 20546 | -5/Garrison | Lost 4 allies 20594 | -5/Garrison | Triggered checkpoint 20617 | -5/Garrison | Garrison Relay disabled 20730 | -5/Garrison | Triggered checkpoint 20810 | -5/Garrison | Discovered new exit (range 10) 20854 | -5/Garrison | Triggered checkpoint 20895 | -5/Garrison | Spotted B-86 Titan 20925 | -5/Garrison | Spotted B-75 Beast 20987 | -5/Garrison | Destroyed B-75 Beast 21105 | -5/Garrison | Discovered new exit (range 12) 21114 | -5/Garrison | Learned Factory security intel 21280 | -5/Garrison | Build established: Bothacker-Tank 21312 | -5/Garrison | Spotted B-75 Beast 21325 | -5/Garrison | Discovered new exit (range 12) 21349 | -5/Garrison | Garrison Relay disabled 21362 | -5/Garrison | Triggered checkpoint 21467 | -5/Garrison | Expanded RIF knowledge: Threat Obfuscation 21487 | -5/Garrison | Garrison Relay disabled 21600 | -5/Garrison | Entered Factory 21684 | -5/Factory | Discovered new exit (range 12) 21818 | -5/Factory | Build established: Botlord-Tank 21876 | -5/Factory | Discovered new exit (range 15) 21889 | -5/Factory | Identified exit to Garrison 21889 | -5/Factory | Entered Garrison 21918 | -5/Garrison | Triggered checkpoint 21953 | -5/Garrison | Expanded RIF knowledge: Threat Obfuscation 21966 | -5/Garrison | Garrison Relay disabled 22018 | -5/Garrison | Spotted B-75 Beast 22078 | -5/Garrison | Destroyed B-75 Beast 22140 | -5/Garrison | Spotted Striker 22235 | -5/Garrison | Triggered checkpoint 22235 | -5/Garrison | Triggered checkpoint 22365 | -5/Garrison | Garrison Relay disabled 22395 | -5/Garrison | Discovered new exit (range 8) 22436 | -5/Garrison | Phase Generator disabled 22530 | -5/Garrison | Triggered checkpoint 22530 | -5/Garrison | Triggered checkpoint 22653 | -5/Garrison | Discovered new exit (range 9) 22745 | -5/Garrison | Triggered checkpoint 22826 | -5/Garrison | Garrison Relay disabled 22980 | -5/Garrison | Discovered new exit (range 5) 23006 | -5/Garrison | Triggered checkpoint 23100 | -5/Garrison | Entered Factory 23100 | -4/Factory | Evolved 2 slots: Utility x1, Weapon x1 23351 | -4/Factory | Discovered new exit (range 16) 23430 | -4/Factory | Identified exit to Garrison 23430 | -4/Factory | Entered Garrison 23456 | -4/Garrison | Discovered new exit (range 41) 23456 | -4/Garrison | Discovered new exit (range 72) 23456 | -4/Garrison | Discovered new exit (range 51) 23499 | -4/Garrison | Spotted B-86 Titan 23500 | -4/Garrison | Triggered checkpoint 23594 | -4/Garrison | Triggered checkpoint 23645 | -4/Garrison | Destroyed B-86 Titan 23668 | -4/Garrison | Lost 3 parts (2u1w) 23785 | -4/Garrison | Lost 5 parts (1p1n3w) 23964 | -4/Garrison | Triggered checkpoint 23996 | -4/Garrison | Build established: Scavenger-Tank 24013 | -4/Garrison | Expanded RIF knowledge: Zone Cloak 24201 | -4/Garrison | Entered Factory 24361 | -4/Factory | Identified exit to Garrison 24361 | -4/Factory | Entered Garrison 24639 | -4/Garrison | Spotted B-86 Titan 24651 | -4/Garrison | Destroyed B-86 Titan 24651 | -4/Garrison | Triggered checkpoint 24743 | -4/Garrison | Triggered checkpoint 24746 | -4/Garrison | Destroyed 13 combat bots 24777 | -4/Garrison | Core integrity fell below 50% 24777 | -4/Garrison | Triggered checkpoint 24794 | -4/Garrison | Self-destructed Last Messages --------------- alarm sounds. 24783_ Destroyed Imp. Phase Shifter. 24783_ Critical hit (Destroy). 24783_ Coil Gun destroyed. 24783_ S-27 Virus misfires. 24785_ Unknown Flight Unit fried. 24785_ S-27 Virus destroyed. 24785_ Imp. Heavy Treads destroyed. 24786_ H-77 Assassin system terminally corrupted. 24786_ Imp. Targeting Computer fried. 24788_ Identified Imp. Treads. 24789_ Destroyed Unknown Flight Unit. 24789_ Chain reaction triggered in Corrupted Lgt. Antimatter Reactor. 24791_ Unknown Flight Unit fried. 24791_ S-27 Virus destroyed. 24791_ Unknown Flight Unit fried. 24791_ S-27 Virus destroyed. [Achievement: Punisher] Map ----- +----------------------------------------------------+ | ????????????????###### #????????????????????????? | | ?????????????????????# #????????????????????????? | | ???????????????####### #????????????????????????? | | #??????????????# ## #????????????????????????? | | !!!#####???????# ## #??####??????????????????? | | #???????# ## #??#! #??????????????????? | | !!!### #???????### ## #??#! #??????????????????? | | #????# #?????????# ## #??#! #??????????????????? | | ?????# #?????????# ## #??#! #??????????????????? | | ?????# #?????????# ## #??#! #??????????????????? | | ??####=########### ## ##?#! #??????????????????? | | ??# =*!=[ ## #### #??????????????????? | | ??# ## #####+##### [! + #??????????????????? | | ??# #*%#???# #???# ####??????????????????? | | ??# ##!#???# #???##+ ####* #?????????????????????? | | ??#[##*##### #????# ##??#% #?????????????????????? | | ###!! [=![ #????# #???#= #?????????????????????? | | # ##########????# #???# #?????????????????????? | | # #?????????????# #???#!!#?????????????????????? | | # #?????????????# #???#[^#??####???????????????? | | ### #?????????????# #???#!*## #???#???????????? | | ??# #?????????????# #??## !%# ## ##??????????? | | ### #"#???????????# ####*=[=[= ##?????????? | | + "#???????????? ?? ;=!!*%[ ???????? | | ### "#????????????#???#=[[*=[ ???????? | | ??# "#????????????????#[@ ;! ## ##?????????? | | ??# #"#????????????????#[%*;; #??? #??????????? | | ??#####???????????????%[%=%![[! ??????????? | | ?????????????????????#=[=[==%= ! %= ?????????? | | ?????????????????????# * ![% ! ?????????? | | ?????????????????????# = *[ ??????????? | | ?????????????????????### #[%% #??????????? | | ???????????????????????# %#?[ #??????????? | | ???????????????????????; * ?? #??????????? | | ???????????????????????# %* ?????????????? | | ???????????????????????# ????????????? | | ???????????????????????## ## ## ????????????? | | ????????????????????????# #? #???????????????? | | ????????????????????????? ??####????????????????? | | ????????????????????????? ??????????????????????? | | ????????????????????????? ??????????????????????? | | ?????????????????????????????????????????????????? | | ?????????????????????????????????????????????????? | | ?????????????????????????????????????????????????? | | ?????????????????????????????????????????????????? | | ?????????????????????????????????????????????????? | | ?????????????????????????????????????????????????? | | ?????????????????????????????????????????????????? | | ?????????????????????????????????????????????????? | | ?????????????????????????????????????????????????? | +----------------------------------------------------+ Best States ------------- Heat Dissipation 93 Energy Generation 43 Energy Capacity 590 Matter Stores 300 Matter Capacity 300 Sight Range 16 Terrain Scan Density 10 Jamming Range 12 Armor Coverage 750 Resistance: KI 20 Resistance: TH 10 Core Shielding 20 Weapon Cycling 15 Evasion (%) 55 Target Analysis 5 Core Analysis 6 Recoil Reduction 4 Relay Coupler Types 3 Relay Coupler Value 79 Authchip Count 1 Item Schematics ----------------- None Robot Schematics ------------------ None Fabricated ------------ Nothing Repaired ---------- Nothing Studied --------- Lgt. Treads | -8/Materials | Hacked Gauss Rifle | -7/Factory | Hacked Remote Datajack | -5/Factory | Hacked Alien Tech Used ----------------- None Achievements -------------- Assimilation Complete Can't Touch This Giant Slayer Hackerman Infiltrator Punisher Satisfying Challenges ------------ None Game ------ Seed PhysicsMomentumAccelerator Manual? 0 Play Time 04:03:23 Cumulative 99.9 hours Start 2026.09.13 @ 13:59:25 End 2026.09.14 @ 01:21:18 Sessions 7 Manual Loads 0 Difficulty Rogue Special Mode None Game No. 41 Rogue 40 Adventurer 1 Explorer 0 Win Type - Total 2 Types 1/0/0/0/0/0/0/0/0/1 Lore% 49 Gallery% 39 Achievement% 41 Wizard Run 0 Options --------- Layout 1 ASCII 1 Keyboard 1 Movement Vi Keybinds 0 Fullscreen 1 Font 36/Smallcaps Map View 50x40 Zoom Use 0% Tactical HUD 1 Map Filters NONE Filters NONE Steam 1 RUN: 85a11db8-9fb1-4639-9589-53fb5ed0e769